[Event "Early-Titled-Tuesday-Blitz-February-27-2024"]
[Site "Chess.com"]
[Date "2024.02.27"]
[Round "2"]
[White "Der_Balak_3Halak"]
[Black "pfalcon1949"]
[Result "1-0"]
[WhiteElo "2438"]
[BlackElo "1871"]
[TimeControl "180+1"]
[EndTime "8:15:56 PST"]
[Termination "Der_Balak_3Halak won by resignation"]

1. Nf3 {[%clk 0:02:40.1]} 1... d5 {[%clk 0:02:57.2]} 2. g3 {[%clk 0:02:41]} 2...
e6 {[%clk 0:02:57.2]} 3. Bg2 {[%clk 0:02:40.6]} 3... Nf6 {[%clk 0:02:57.8]} 4.
d4 {[%clk 0:02:39.1]} 4... Be7 {[%clk 0:02:58.7]} 5. O-O {[%clk 0:02:38.3]} 5...
O-O {[%clk 0:02:58.6]} 6. Bf4 {[%clk 0:02:37.8]} 6... c5 {[%clk 0:02:53]} 7. c3
{[%clk 0:02:36.7]} 7... Nc6 {[%clk 0:02:52.2]} 8. Nbd2 {[%clk 0:02:33.7]} 8...
cxd4 {[%clk 0:02:52]} 9. cxd4 {[%clk 0:02:33.7]} 9... Nh5 {[%clk 0:02:51.5]} 10.
Be3 {[%clk 0:02:32.2]} 10... f5 {[%clk 0:02:46.8]} 11. Ne5 {[%clk 0:02:30.1]}
11... Nxe5 {[%clk 0:02:45.9]} 12. dxe5 {[%clk 0:02:31]} 12... f4 {[%clk
0:02:44.7]} 13. Bd4 {[%clk 0:02:26.8]} 13... Bd7 {[%clk 0:02:44.4]} 14. e4
{[%clk 0:02:22.8]} 14... fxe3 {[%clk 0:02:36.1]} 15. Bxe3 {[%clk 0:02:20.6]}
15... g6 {[%clk 0:02:32.6]} 16. Nb3 {[%clk 0:02:11.8]} 16... b6 {[%clk
0:02:30.3]} 17. Nd4 {[%clk 0:02:10.3]} 17... Rc8 {[%clk 0:02:27.5]} 18. Bh3
{[%clk 0:02:09]} 18... Ng7 {[%clk 0:02:22.3]} 19. Bh6 {[%clk 0:02:09.6]} 19...
Rc4 {[%clk 0:01:54.8]} 20. b3 {[%clk 0:02:03.4]} 20... Rxd4 {[%clk 0:01:53.5]}
21. Qxd4 {[%clk 0:02:02.4]} 21... Nf5 {[%clk 0:01:52.7]} 22. Qd2 {[%clk
0:01:56.9]} 22... Nxh6 {[%clk 0:01:50.1]} 23. Qxh6 {[%clk 0:01:56.3]} 23... Rf7
{[%clk 0:01:50.4]} 24. Qd2 {[%clk 0:01:52]} 24... a5 {[%clk 0:01:40.8]} 25. f4
{[%clk 0:01:49.7]} 25... Bc5+ {[%clk 0:01:40.2]} 26. Kh1 {[%clk 0:01:49]} 26...
Bc6 {[%clk 0:01:40.3]} 27. Rad1 {[%clk 0:01:42.8]} 27... Re7 {[%clk 0:01:36.9]}
28. Bg2 {[%clk 0:01:40.2]} 28... Kg7 {[%clk 0:01:35.7]} 29. f5 {[%clk
0:01:35.4]} 29... gxf5 {[%clk 0:01:34.1]} 30. Qg5+ {[%clk 0:01:33.5]} 30... Kh8
{[%clk 0:01:33.6]} 31. Qf6+ {[%clk 0:01:26.3]} 31... Kg8 {[%clk 0:01:32.8]} 32.
Rf4 {[%clk 0:01:25.6]} 32... Qd7 {[%clk 0:01:26.1]} 33. Rdf1 {[%clk 0:01:20.5]}
33... Bb5 {[%clk 0:01:20.4]} 34. Rg4+ {[%clk 0:01:17.9]} 34... Rg7 {[%clk
0:01:16.8]} 35. Rxg7+ {[%clk 0:01:17.5]} 35... Qxg7 {[%clk 0:01:17.7]} 36. Qxe6+
{[%clk 0:01:18.3]} 36... Kh8 {[%clk 0:01:15.9]} 37. Qc8+ {[%clk 0:01:08.5]}
37... Qf8 {[%clk 0:01:02.2]} 38. Qxf8+ {[%clk 0:01:07.8]} 38... Bxf8 {[%clk
0:01:01.6]} 39. Rxf5 {[%clk 0:01:08.7]} 39... Kg7 {[%clk 0:01:00.6]} 40. Bxd5
{[%clk 0:01:08.1]} 40... Be8 {[%clk 0:00:58.1]} 41. Kg2 {[%clk 0:01:04.8]} 41...
Be7 {[%clk 0:00:58.3]} 42. Kf3 {[%clk 0:01:04.9]} 42... Kg6 {[%clk 0:00:56.1]}
43. Be4 {[%clk 0:01:03.9]} 43... Bc6 {[%clk 0:00:53.1]} 44. Rf6+ {[%clk
0:01:04.2]} 44... Kg7 {[%clk 0:00:51.3]} 45. Rxc6 {[%clk 0:01:05.1]} 1-0

[Event "Early-Titled-Tuesday-Blitz-February-27-2024"]
[Site "Chess.com"]
[Date "2024.02.27"]
[Round "2"]
[White "Mihajlovskij"]
[Black "Brahianzevich"]
[Result "1-0"]
[WhiteElo "2223"]
[BlackElo "2478"]
[TimeControl "180+1"]
[EndTime "8:15:57 PST"]
[Termination "Mihajlovskij won on time"]

1. e4 {[%clk 0:03:00.9]} 1... c5 {[%clk 0:02:53.1]} 2. Nf3 {[%clk 0:02:56.8]}
2... d6 {[%clk 0:02:53.4]} 3. d4 {[%clk 0:02:52.5]} 3... cxd4 {[%clk 0:02:54.3]}
4. Qxd4 {[%clk 0:02:49.9]} 4... Nc6 {[%clk 0:02:53.5]} 5. Bb5 {[%clk 0:02:47.6]}
5... Bd7 {[%clk 0:02:54.2]} 6. Qd3 {[%clk 0:02:47.2]} 6... Nf6 {[%clk
0:02:52.2]} 7. c4 {[%clk 0:02:46.2]} 7... a6 {[%clk 0:02:49.3]} 8. Bxc6 {[%clk
0:02:45.3]} 8... bxc6 {[%clk 0:02:50.2]} 9. Nc3 {[%clk 0:02:43.4]} 9... Qc7
{[%clk 0:02:48.7]} 10. O-O {[%clk 0:02:42.9]} 10... e5 {[%clk 0:02:48.8]} 11. h3
{[%clk 0:02:34.8]} 11... Be7 {[%clk 0:02:48.3]} 12. Be3 {[%clk 0:02:33.6]} 12...
O-O {[%clk 0:02:47.4]} 13. c5 {[%clk 0:02:33.7]} 13... dxc5 {[%clk 0:02:17]} 14.
Rac1 {[%clk 0:02:31]} 14... Rfd8 {[%clk 0:02:10.6]} 15. Na4 {[%clk 0:02:26]}
15... Bxh3 {[%clk 0:02:07.8]} 16. Qc2 {[%clk 0:02:24]} 16... Bg4 {[%clk
0:01:38.6]} 17. Nd2 {[%clk 0:02:22.7]} 17... Be2 {[%clk 0:01:33.5]} 18. Rfe1
{[%clk 0:02:17.2]} 18... Bd3 {[%clk 0:01:33.5]} 19. Qc3 {[%clk 0:02:16]} 19...
c4 {[%clk 0:01:07.5]} 20. f3 {[%clk 0:02:09.7]} 20... Rab8 {[%clk 0:01:06.1]}
21. Nxc4 {[%clk 0:02:01.9]} 21... Bb4 {[%clk 0:01:02.9]} 22. Qb3 {[%clk
0:01:55.7]} 22... Bxe1 {[%clk 0:01:02.4]} 23. Bb6 {[%clk 0:01:55.7]} 23... Qd7
{[%clk 0:00:45]} 24. Nxe5 {[%clk 0:01:51.9]} 24... Qd6 {[%clk 0:00:35.8]} 25.
Nxf7 {[%clk 0:01:48]} 25... Rxb6 {[%clk 0:00:18.8]} 26. Nxb6 {[%clk 0:01:45.2]}
26... Qd4+ {[%clk 0:00:17.6]} 27. Kh1 {[%clk 0:01:43.6]} 27... Rd5 {[%clk
0:00:11]} 28. Nxd5 {[%clk 0:01:39.5]} 28... cxd5 {[%clk 0:00:07.5]} 29. Ng5
{[%clk 0:01:25.3]} 29... Bc4 {[%clk 0:00:02.9]} 30. Qb8+ {[%clk 0:01:24.3]} 1-0

[Event "Early-Titled-Tuesday-Blitz-February-27-2024"]
[Site "Chess.com"]
[Date "2024.02.27"]
[Round "2"]
[White "Better_Chess_Faster"]
[Black "GilbertoHernandezAmura"]
[Result "0-1"]
[WhiteElo "2127"]
[BlackElo "2477"]
[TimeControl "180+1"]
[EndTime "8:16:04 PST"]
[Termination "GilbertoHernandezAmura won by resignation"]

1. d4 {[%clk 0:03:00.9]} 1... c6 {[%clk 0:02:50.8]} 2. e4 {[%clk 0:02:58.1]}
2... g6 {[%clk 0:02:46.9]} 3. Nc3 {[%clk 0:02:55.3]} 3... Bg7 {[%clk 0:02:47.3]}
4. Be3 {[%clk 0:02:55]} 4... d5 {[%clk 0:02:45.9]} 5. h3 {[%clk 0:02:53.6]} 5...
dxe4 {[%clk 0:02:44.9]} 6. Nxe4 {[%clk 0:02:53.3]} 6... Nf6 {[%clk 0:02:45.7]}
7. Nxf6+ {[%clk 0:02:52.9]} 7... exf6 {[%clk 0:02:46.6]} 8. Nf3 {[%clk 0:02:52]}
8... O-O {[%clk 0:02:44.9]} 9. Be2 {[%clk 0:02:50.1]} 9... Re8 {[%clk
0:02:42.4]} 10. O-O {[%clk 0:02:47.5]} 10... Na6 {[%clk 0:02:42.2]} 11. c3
{[%clk 0:02:46.4]} 11... Nc7 {[%clk 0:02:40.6]} 12. Qd2 {[%clk 0:02:43.7]} 12...
Bf5 {[%clk 0:02:22.1]} 13. Bd3 {[%clk 0:02:40.9]} 13... Qd7 {[%clk 0:02:17]} 14.
Rfe1 {[%clk 0:02:39.9]} 14... Rad8 {[%clk 0:02:16.4]} 15. Rad1 {[%clk
0:02:38.2]} 15... Nd5 {[%clk 0:02:12]} 16. Bf1 {[%clk 0:02:36.7]} 16... Be4
{[%clk 0:02:11]} 17. Nh2 {[%clk 0:02:32.7]} 17... b5 {[%clk 0:02:04.8]} 18. Bh6
{[%clk 0:02:31.7]} 18... a5 {[%clk 0:01:47.6]} 19. Ng4 {[%clk 0:02:21.4]} 19...
Bh8 {[%clk 0:01:39.9]} 20. Ne3 {[%clk 0:01:58.3]} 20... Nc7 {[%clk 0:01:09.3]}
21. Ng4 {[%clk 0:01:52.2]} 21... f5 {[%clk 0:01:00.6]} 22. Nh2 {[%clk
0:01:22.5]} 22... a4 {[%clk 0:00:56.6]} 23. Bg5 {[%clk 0:01:17.5]} 23... Rb8
{[%clk 0:00:48.5]} 24. Be2 {[%clk 0:01:13.2]} 24... Bd5 {[%clk 0:00:32.9]} 25.
Nf3 {[%clk 0:01:12]} 25... Bxa2 {[%clk 0:00:31.1]} 26. Bf4 {[%clk 0:01:12.1]}
26... Rbd8 {[%clk 0:00:27]} 27. Ne5 {[%clk 0:01:10.3]} 27... Bxe5 {[%clk
0:00:22]} 28. Bxe5 {[%clk 0:01:09.6]} 28... Rxe5 {[%clk 0:00:21.2]} 29. dxe5
{[%clk 0:01:06.5]} 29... Qxd2 {[%clk 0:00:20.9]} 30. Rxd2 {[%clk 0:01:07.4]}
30... Rxd2 {[%clk 0:00:21.2]} 31. Bf3 {[%clk 0:01:07.4]} 31... Bd5 {[%clk
0:00:20.4]} 32. Bxd5 {[%clk 0:01:05.4]} 32... cxd5 {[%clk 0:00:20.8]} 33. e6
{[%clk 0:01:06.2]} 33... fxe6 {[%clk 0:00:21]} 34. Rxe6 {[%clk 0:01:06.4]} 34...
Nxe6 {[%clk 0:00:20.9]} 0-1

[Event "Early-Titled-Tuesday-Blitz-February-27-2024"]
[Site "Chess.com"]
[Date "2024.02.27"]
[Round "2"]
[White "SashaKuzhilniy"]
[Black "Vaathi_Coming"]
[Result "0-1"]
[WhiteElo "2606"]
[BlackElo "2922"]
[TimeControl "180+1"]
[EndTime "8:16:07 PST"]
[Termination "Vaathi_Coming won by checkmate"]

1. b3 {[%clk 0:02:56.5]} 1... b6 {[%clk 0:02:58.8]} 2. Bb2 {[%clk 0:02:57.4]}
2... Bb7 {[%clk 0:02:59.6]} 3. e3 {[%clk 0:02:57.9]} 3... Nf6 {[%clk 0:02:59.4]}
4. Nf3 {[%clk 0:02:58.5]} 4... e6 {[%clk 0:02:59.7]} 5. Be2 {[%clk 0:02:58.3]}
5... d5 {[%clk 0:02:59.5]} 6. O-O {[%clk 0:02:58.7]} 6... Bd6 {[%clk 0:02:58.6]}
7. c4 {[%clk 0:02:58.6]} 7... Nbd7 {[%clk 0:02:59.2]} 8. d4 {[%clk 0:02:57.2]}
8... O-O {[%clk 0:02:58.6]} 9. Nbd2 {[%clk 0:02:56.2]} 9... Ne4 {[%clk
0:02:53.5]} 10. Rc1 {[%clk 0:02:50.1]} 10... Qe7 {[%clk 0:02:40.5]} 11. Nxe4
{[%clk 0:02:30.8]} 11... dxe4 {[%clk 0:02:41.4]} 12. Ne5 {[%clk 0:02:31.4]}
12... Bxe5 {[%clk 0:02:41.1]} 13. dxe5 {[%clk 0:02:31.6]} 13... Rfd8 {[%clk
0:02:41.9]} 14. Qc2 {[%clk 0:02:28.4]} 14... Qg5 {[%clk 0:02:30.6]} 15. Qc3
{[%clk 0:02:13.1]} 15... Nc5 {[%clk 0:02:23.4]} 16. Rcd1 {[%clk 0:02:05.2]}
16... Nd3 {[%clk 0:02:15.8]} 17. Ba1 {[%clk 0:01:54.5]} 17... Rd7 {[%clk
0:02:15.4]} 18. Rd2 {[%clk 0:01:45.3]} 18... Rad8 {[%clk 0:02:12.2]} 19. Rfd1
{[%clk 0:01:45.3]} 19... h5 {[%clk 0:01:49.4]} 20. Bf1 {[%clk 0:01:34.6]} 20...
c5 {[%clk 0:01:43.1]} 21. f4 {[%clk 0:01:17.4]} 21... Qg6 {[%clk 0:01:07.1]} 22.
a3 {[%clk 0:01:14.6]} 22... Bc6 {[%clk 0:01:02.7]} 23. Be2 {[%clk 0:01:04.6]}
23... Nxf4 {[%clk 0:00:20.8]} 24. exf4 {[%clk 0:00:54.4]} 24... e3 {[%clk
0:00:21.7]} 25. Bxh5 {[%clk 0:00:48.8]} 25... Qxg2+ {[%clk 0:00:14.5]} 26. Rxg2
{[%clk 0:00:49.7]} 26... Rxd1+ {[%clk 0:00:14.7]} 27. Bxd1 {[%clk 0:00:50.1]}
27... Rxd1+ {[%clk 0:00:15.6]} 28. Qe1 {[%clk 0:00:50.3]} 28... Rxe1# {[%clk
0:00:16.5]} 0-1

[Event "Early-Titled-Tuesday-Blitz-February-27-2024"]
[Site "Chess.com"]
[Date "2024.02.27"]
[Round "2"]
[White "ajian"]
[Black "ChessSkool"]
[Result "0-1"]
[WhiteElo "2468"]
[BlackElo "2735"]
[TimeControl "180+1"]
[EndTime "8:16:07 PST"]
[Termination "ChessSkool won by resignation"]

1. d4 {[%clk 0:02:03.7]} 1... d5 {[%clk 0:02:57.9]} 2. c4 {[%clk 0:02:03.3]}
2... e6 {[%clk 0:02:55.7]} 3. Nc3 {[%clk 0:01:58.9]} 3... Nf6 {[%clk 0:02:55.1]}
4. cxd5 {[%clk 0:01:57.3]} 4... exd5 {[%clk 0:02:55.5]} 5. Bg5 {[%clk
0:01:57.6]} 5... c6 {[%clk 0:02:55.8]} 6. Qc2 {[%clk 0:01:57.6]} 6... h6 {[%clk
0:02:54]} 7. Bh4 {[%clk 0:01:55.6]} 7... g6 {[%clk 0:02:52.3]} 8. e3 {[%clk
0:01:41.5]} 8... Bf5 {[%clk 0:02:49.2]} 9. Qb3 {[%clk 0:01:39.7]} 9... g5 {[%clk
0:02:42.8]} 10. Qxb7 {[%clk 0:01:32.3]} 10... gxh4 {[%clk 0:02:42.5]} 11. Qxa8
{[%clk 0:01:32.1]} 11... Qb6 {[%clk 0:02:42.8]} 12. O-O-O {[%clk 0:01:05.4]}
12... Bd6 {[%clk 0:02:33.8]} 13. Nf3 {[%clk 0:00:31.5]} 13... O-O {[%clk
0:02:25.5]} 14. Ne5 {[%clk 0:00:31.7]} 14... Ne4 {[%clk 0:01:33.6]} 15. Nxe4
{[%clk 0:00:21.3]} 15... Bxe4 {[%clk 0:01:34.5]} 16. Bd3 {[%clk 0:00:18]} 16...
Bxe5 {[%clk 0:01:26]} 17. Bxe4 {[%clk 0:00:17.3]} 17... dxe4 {[%clk 0:01:23.2]}
18. dxe5 {[%clk 0:00:17.5]} 18... Na6 {[%clk 0:01:22.9]} 19. Qxf8+ {[%clk
0:00:09.5]} 19... Kxf8 {[%clk 0:01:23.8]} 20. Rd4 {[%clk 0:00:09.9]} 20... Nc5
{[%clk 0:01:17.5]} 21. Kb1 {[%clk 0:00:10.4]} 21... Nd3 {[%clk 0:01:13.2]} 22.
b3 {[%clk 0:00:10.9]} 22... Qc5 {[%clk 0:01:13.4]} 23. Rc4 {[%clk 0:00:08.7]}
23... Qxe5 {[%clk 0:01:12.7]} 24. Rc2 {[%clk 0:00:07.7]} 24... c5 {[%clk
0:01:08.4]} 25. Rd1 {[%clk 0:00:07.5]} 25... h3 {[%clk 0:01:03.6]} 26. gxh3
{[%clk 0:00:07.6]} 26... Qh5 {[%clk 0:01:03.9]} 27. Rcd2 {[%clk 0:00:07.3]}
27... Qxh3 {[%clk 0:01:03]} 28. f3 {[%clk 0:00:06.4]} 28... Qxf3 {[%clk
0:01:02.4]} 0-1

[Event "Early-Titled-Tuesday-Blitz-February-27-2024"]
[Site "Chess.com"]
[Date "2024.02.27"]
[Round "2"]
[White "emiliochess"]
[Black "CristianS27"]
[Result "1-0"]
[WhiteElo "2340"]
[BlackElo "2530"]
[TimeControl "180+1"]
[EndTime "8:16:08 PST"]
[Termination "emiliochess won by resignation"]

1. d4 {[%clk 0:02:57.8]} 1... Nf6 {[%clk 0:02:59.9]} 2. Bf4 {[%clk 0:02:58]}
2... g6 {[%clk 0:03:00.2]} 3. Nc3 {[%clk 0:02:58]} 3... Bg7 {[%clk 0:03:00.9]}
4. e4 {[%clk 0:02:57.6]} 4... d5 {[%clk 0:02:55.2]} 5. Nb5 {[%clk 0:02:57.7]}
5... Na6 {[%clk 0:02:51.3]} 6. e5 {[%clk 0:02:57.7]} 6... Nd7 {[%clk 0:02:44.5]}
7. c3 {[%clk 0:02:57.9]} 7... c6 {[%clk 0:02:40]} 8. Na3 {[%clk 0:02:57.8]} 8...
O-O {[%clk 0:02:40.5]} 9. h4 {[%clk 0:02:57.5]} 9... f6 {[%clk 0:02:35.9]} 10.
e6 {[%clk 0:02:53.5]} 10... Nb6 {[%clk 0:02:32.5]} 11. Qg4 {[%clk 0:02:47.8]}
11... Nc7 {[%clk 0:02:23.7]} 12. h5 {[%clk 0:02:45]} 12... Bxe6 {[%clk
0:02:02.7]} 13. Qg3 {[%clk 0:02:43.2]} 13... g5 {[%clk 0:02:02.3]} 14. Bxc7
{[%clk 0:02:43.1]} 14... Qd7 {[%clk 0:01:56.7]} 15. h6 {[%clk 0:02:39.7]} 15...
Bh8 {[%clk 0:01:52.8]} 16. Bd3 {[%clk 0:02:37.7]} 16... Nc4 {[%clk 0:01:46.7]}
17. Bxc4 {[%clk 0:02:28.7]} 17... dxc4 {[%clk 0:01:47.6]} 18. Nf3 {[%clk
0:02:28.8]} 18... Bf5 {[%clk 0:01:28.4]} 19. Nxc4 {[%clk 0:02:24]} 19... Bd3
{[%clk 0:01:23.8]} 20. Ncd2 {[%clk 0:02:15.3]} 20... e5 {[%clk 0:01:21.9]} 21.
Nxe5 {[%clk 0:01:41.5]} 21... fxe5 {[%clk 0:01:17.3]} 22. Qxd3 {[%clk
0:01:41.3]} 22... Qxc7 {[%clk 0:01:15.1]} 23. Rh5 {[%clk 0:01:41.6]} 23... Bf6
{[%clk 0:01:12.8]} 24. Ne4 {[%clk 0:01:41.4]} 24... exd4 {[%clk 0:01:11.3]} 25.
Nxf6+ {[%clk 0:01:41.2]} 25... Rxf6 {[%clk 0:01:12.2]} 26. Rxg5+ {[%clk
0:01:41.7]} 26... Kf8 {[%clk 0:00:49.5]} 27. Rg7 {[%clk 0:01:31.1]} 27... Qf4
{[%clk 0:00:42.8]} 28. Rxh7 {[%clk 0:01:20.5]} 28... Re8+ {[%clk 0:00:21.9]} 29.
Kd1 {[%clk 0:01:20.8]} 29... Qxf2 {[%clk 0:00:17.9]} 30. Rh8+ {[%clk 0:01:21.1]}
30... Kf7 {[%clk 0:00:15.6]} 31. Qh7+ {[%clk 0:01:15.1]} 31... Ke6 {[%clk
0:00:11.3]} 32. Rxe8+ {[%clk 0:01:16]} 32... Kd5 {[%clk 0:00:09.6]} 33. Qe4+
{[%clk 0:01:16.3]} 33... Kc5 {[%clk 0:00:08.1]} 34. Qxd4+ {[%clk 0:01:16.8]}
34... Qxd4+ {[%clk 0:00:07.8]} 35. cxd4+ {[%clk 0:01:17.7]} 35... Kxd4 {[%clk
0:00:08.3]} 36. h7 {[%clk 0:01:16.8]} 36... Rh6 {[%clk 0:00:08.9]} 37. h8=Q+
{[%clk 0:01:16.9]} 1-0

[Event "Early-Titled-Tuesday-Blitz-February-27-2024"]
[Site "Chess.com"]
[Date "2024.02.27"]
[Round "2"]
[White "Ati1517"]
[Black "Logman74"]
[Result "0-1"]
[WhiteElo "2249"]
[BlackElo "2514"]
[TimeControl "180+1"]
[EndTime "8:16:09 PST"]
[Termination "Logman74 won by resignation"]

1. e4 {[%clk 0:03:00.9]} 1... c5 {[%clk 0:02:59.1]} 2. Nf3 {[%clk 0:02:59.1]}
2... d6 {[%clk 0:02:58.5]} 3. d4 {[%clk 0:02:59.5]} 3... cxd4 {[%clk 0:02:58.2]}
4. Nxd4 {[%clk 0:03:00.4]} 4... Nf6 {[%clk 0:02:58.3]} 5. Nc3 {[%clk 0:03:00.7]}
5... Nc6 {[%clk 0:02:58.8]} 6. Bc4 {[%clk 0:02:58.5]} 6... e6 {[%clk 0:02:58]}
7. O-O {[%clk 0:02:57.8]} 7... Be7 {[%clk 0:02:57.6]} 8. Be3 {[%clk 0:02:56.6]}
8... a6 {[%clk 0:02:55.7]} 9. f3 {[%clk 0:02:56.5]} 9... Qc7 {[%clk 0:02:56.2]}
10. Bb3 {[%clk 0:02:55.7]} 10... O-O {[%clk 0:02:56.8]} 11. Qd2 {[%clk 0:02:54]}
11... b5 {[%clk 0:02:56.8]} 12. Rad1 {[%clk 0:02:52]} 12... Bb7 {[%clk
0:02:55.8]} 13. Nxc6 {[%clk 0:02:40.9]} 13... Bxc6 {[%clk 0:02:55.1]} 14. Bf4
{[%clk 0:02:41.2]} 14... Rfd8 {[%clk 0:02:52.5]} 15. Rfe1 {[%clk 0:02:33.1]}
15... a5 {[%clk 0:02:45.6]} 16. a3 {[%clk 0:02:15.3]} 16... Qb7 {[%clk
0:02:36.2]} 17. Ne2 {[%clk 0:02:08.1]} 17... d5 {[%clk 0:02:27.3]} 18. exd5
{[%clk 0:01:54.1]} 18... Nxd5 {[%clk 0:02:18.2]} 19. Bxd5 {[%clk 0:01:53.6]}
19... Bxd5 {[%clk 0:02:12.7]} 20. Qe3 {[%clk 0:01:48.5]} 20... b4 {[%clk
0:02:02.7]} 21. a4 {[%clk 0:01:47.3]} 21... Rac8 {[%clk 0:01:58]} 22. Nd4 {[%clk
0:01:45.1]} 22... Rc4 {[%clk 0:01:48.6]} 23. b3 {[%clk 0:01:14.3]} 23... Rc3
{[%clk 0:01:46.1]} 24. Qf2 {[%clk 0:01:13.9]} 24... Rdc8 {[%clk 0:01:40]} 25.
Be5 {[%clk 0:01:11]} 25... f6 {[%clk 0:01:30.3]} 26. Bg3 {[%clk 0:01:05.9]}
26... e5 {[%clk 0:01:25.7]} 27. Nf5 {[%clk 0:01:04.3]} 27... Bc5 {[%clk
0:01:23.4]} 28. Ne3 {[%clk 0:01:02.3]} 28... Be6 {[%clk 0:01:07.7]} 29. Rd2
{[%clk 0:00:57.5]} 29... Qb6 {[%clk 0:01:02.2]} 30. Rde2 {[%clk 0:00:53.2]}
30... Bxe3 {[%clk 0:00:52]} 31. Rxe3 {[%clk 0:00:51.4]} 31... Rxc2 {[%clk
0:00:51.3]} 32. R1e2 {[%clk 0:00:50.7]} 32... Rxe2 {[%clk 0:00:49.9]} 33. Qxe2
{[%clk 0:00:49.4]} 33... Bxb3 {[%clk 0:00:46]} 34. Bf2 {[%clk 0:00:47.5]} 34...
Rc1+ {[%clk 0:00:43.2]} 0-1

[Event "Early-Titled-Tuesday-Blitz-February-27-2024"]
[Site "Chess.com"]
[Date "2024.02.27"]
[Round "2"]
[White "MIss_MIaMI"]
[Black "GoltsevDmitry2000"]
[Result "0-1"]
[WhiteElo "2415"]
[BlackElo "2773"]
[TimeControl "180+1"]
[EndTime "8:16:12 PST"]
[Termination "GoltsevDmitry2000 won by resignation"]

1. e4 {[%clk 0:03:00.9]} 1... e6 {[%clk 0:02:59.9]} 2. d4 {[%clk 0:03:00.2]}
2... d5 {[%clk 0:03:00.4]} 3. exd5 {[%clk 0:03:01.1]} 3... exd5 {[%clk
0:03:00.3]} 4. Qf3 {[%clk 0:03:01.4]} 4... Nf6 {[%clk 0:03:00.3]} 5. h3 {[%clk
0:03:01.4]} 5... Bd6 {[%clk 0:03:00.1]} 6. Bd3 {[%clk 0:03:01.2]} 6... O-O
{[%clk 0:02:59.5]} 7. Ne2 {[%clk 0:03:00.8]} 7... c5 {[%clk 0:02:59.5]} 8. c3
{[%clk 0:03:00.8]} 8... Nc6 {[%clk 0:02:59.3]} 9. Be3 {[%clk 0:02:59.1]} 9...
cxd4 {[%clk 0:02:58.6]} 10. Nxd4 {[%clk 0:02:58.6]} 10... Ne5 {[%clk 0:02:58]}
11. Qe2 {[%clk 0:02:58.4]} 11... Nxd3+ {[%clk 0:02:58.1]} 12. Qxd3 {[%clk
0:02:59.3]} 12... Ne4 {[%clk 0:02:54.9]} 13. Nd2 {[%clk 0:02:55]} 13... Nc5
{[%clk 0:02:51.4]} 14. Qe2 {[%clk 0:02:39.9]} 14... f5 {[%clk 0:02:51.4]} 15. f4
{[%clk 0:02:23.5]} 15... Qh4+ {[%clk 0:02:47.7]} 16. Kd1 {[%clk 0:02:14.7]}
16... Re8 {[%clk 0:02:39.7]} 17. Qf3 {[%clk 0:02:08.6]} 17... Ne4 {[%clk
0:02:32.7]} 18. Kc2 {[%clk 0:01:42.4]} 18... Bd7 {[%clk 0:02:28.7]} 19. Rag1
{[%clk 0:01:32]} 19... Rac8 {[%clk 0:02:28]} 20. g3 {[%clk 0:01:31.3]} 20... Qe7
{[%clk 0:02:23.3]} 21. Re1 {[%clk 0:01:08.9]} 21... Ba4+ {[%clk 0:02:09.6]} 22.
Kb1 {[%clk 0:01:04.7]} 22... b5 {[%clk 0:01:39.5]} 23. Nxf5 {[%clk 0:01:01.2]}
23... Qf6 {[%clk 0:01:31.7]} 24. Nxd6 {[%clk 0:00:33.2]} 24... Qxd6 {[%clk
0:01:06.3]} 25. Bd4 {[%clk 0:00:28.6]} 25... Nxd2+ {[%clk 0:01:05.9]} 26. Ka1
{[%clk 0:00:26.1]} 26... Nxf3 {[%clk 0:01:06.8]} 27. Rxe8+ {[%clk 0:00:25.1]}
27... Rxe8 {[%clk 0:01:07.7]} 28. Rf1 {[%clk 0:00:22.2]} 28... Nxd4 {[%clk
0:01:07.3]} 29. cxd4 {[%clk 0:00:23.1]} 29... Qc6 {[%clk 0:01:07.8]} 30. g4
{[%clk 0:00:20.5]} 30... Qc4 {[%clk 0:01:07.6]} 31. Rg1 {[%clk 0:00:18.5]} 31...
Qxd4 {[%clk 0:01:08]} 32. Rh1 {[%clk 0:00:18.9]} 32... Qd2 {[%clk 0:01:07.4]}
33. b3 {[%clk 0:00:16.3]} 33... Re2 {[%clk 0:01:06.7]} 0-1

[Event "Early-Titled-Tuesday-Blitz-February-27-2024"]
[Site "Chess.com"]
[Date "2024.02.27"]
[Round "2"]
[White "pr1105"]
[Black "Casper"]
[Result "0-1"]
[WhiteElo "2318"]
[BlackElo "2540"]
[TimeControl "180+1"]
[EndTime "8:16:14 PST"]
[Termination "Casper won on time"]

1. e4 {[%clk 0:02:21.6]} 1... g6 {[%clk 0:02:57.6]} 2. d4 {[%clk 0:02:16.3]}
2... Bg7 {[%clk 0:02:58.5]} 3. Nc3 {[%clk 0:02:15.2]} 3... d6 {[%clk 0:02:59.2]}
4. Be3 {[%clk 0:02:15]} 4... Nd7 {[%clk 0:02:58.8]} 5. Qd2 {[%clk 0:02:13.1]}
5... c6 {[%clk 0:02:59.3]} 6. f4 {[%clk 0:02:09.7]} 6... b5 {[%clk 0:02:58.8]}
7. Nf3 {[%clk 0:02:09.4]} 7... Nb6 {[%clk 0:02:56.7]} 8. h3 {[%clk 0:02:08.3]}
8... Nc4 {[%clk 0:02:53.6]} 9. Bxc4 {[%clk 0:02:07.7]} 9... bxc4 {[%clk
0:02:54.5]} 10. O-O {[%clk 0:02:05]} 10... d5 {[%clk 0:02:54.7]} 11. e5 {[%clk
0:02:00.9]} 11... h5 {[%clk 0:02:52.7]} 12. b3 {[%clk 0:01:41.3]} 12... cxb3
{[%clk 0:02:41.4]} 13. axb3 {[%clk 0:01:42.2]} 13... Nh6 {[%clk 0:02:41.8]} 14.
Na4 {[%clk 0:01:38.9]} 14... Nf5 {[%clk 0:02:33.4]} 15. Bf2 {[%clk 0:01:22.8]}
15... h4 {[%clk 0:02:30.5]} 16. Nc5 {[%clk 0:01:21.9]} 16... a5 {[%clk
0:02:07.8]} 17. Ra4 {[%clk 0:01:18.3]} 17... Ng3 {[%clk 0:02:02.8]} 18. Bxg3
{[%clk 0:01:09.7]} 18... hxg3 {[%clk 0:02:03.7]} 19. Rfa1 {[%clk 0:01:09.9]}
19... Bf5 {[%clk 0:01:58.9]} 20. Rxa5 {[%clk 0:00:54.2]} 20... Rxa5 {[%clk
0:01:59.8]} 21. Rxa5 {[%clk 0:00:53.1]} 21... Bxc2 {[%clk 0:01:37.6]} 22. Ra6
{[%clk 0:00:52.9]} 22... Bf5 {[%clk 0:01:30.1]} 23. Rxc6 {[%clk 0:00:50.6]}
23... Qb8 {[%clk 0:01:14.9]} 24. b4 {[%clk 0:00:27.3]} 24... Qb5 {[%clk
0:01:08.3]} 25. Ra6 {[%clk 0:00:27.4]} 25... O-O {[%clk 0:00:58]} 26. Ra5 {[%clk
0:00:19.8]} 26... Qc4 {[%clk 0:00:58.1]} 27. Ra1 {[%clk 0:00:13.4]} 27... Rb8
{[%clk 0:00:57.4]} 28. Rb1 {[%clk 0:00:13.9]} 28... Bxb1 {[%clk 0:00:56.8]} 0-1